Cogmind - Beta 9.4 @@@ ROGUE MODE // 2020.02.10 @ 10:26:57 Player: robin Result: Self-destructed Performance ------------- Evolutions (1) 500 Regions Visited (3) 600 Robots Destroyed (14) 70 Value Destroyed (426) 426 Prototype IDs (0) 0 Alien Tech Used (0) 0 Bonus (0) 0 TOTAL SCORE: 1596 Bonus ------- None Cogmind --------- Core Integrity 149/400 Matter 285/300 Energy 100/100 System Corruption 0% Temperature Cool (0) Movement Core (550) Ox10 Location -9/Mines Parts ------- > --- POWER (1) -------- (None) > --- PROPULSION (3) --- (None) > --- UTILITY (3) ------ High-capacity Storage Unit Targeting Computer > --- WEAPON (2) ------- (None) > --- INVENTORY (12) --- Light Treads Light Treads Aluminum Leg Aluminum Leg Light Armor Plating Assault Rifle Heavy Assault Rifle Grenade Launcher Peak State ------------ > --- POWER ------------ Ion Engine > --- PROPULSION ------- Aluminum Leg Aluminum Leg Aluminum Leg > --- UTILITY ---------- High-capacity Storage Unit Structural Scanner Targeting Computer > --- WEAPON ----------- Assault Rifle Heavy Assault Rifle > --- INVENTORY -------- Ion Engine Aluminum Leg Aluminum Leg Aluminum Leg Aluminum Leg Light Armor Plating Assault Rifle Heavy Assault Rifle Grenade Launcher [Rating: 11] Favorites ----------- Power Ion Engine Engine Ion Engine Propulsion Aluminum Leg Leg Aluminum Leg Utility Targeting Computer Device Structural Scanner Storage High-capacity Storage Unit Processor Targeting Computer Weapon Assault Rifle Ballistic Gun Assault Rifle Launcher Grenade Launcher Build | -11 -10 -9 -9 ------- Run | Scr Mat Mat Min Slots Evolved 2 | . . 2 . Power . | . . . . Propulsion 1 | . . 1 . Utility 1 | . . 1 . Weapon . | . . . . Parts Attached 22 | 5 6 5 6 Power 3 | 1 1 . 1 Engine 3 | 1 1 . 1 Core . | . . . . Reactor . | . . . . Propulsion 9 | 2 1 1 5 Treads . | . . . . Leg 9 | 2 1 1 5 Wheel . | . . . . Hover . | . . . . Flight . | . . . . Utility 5 | . 4 1 . Device 3 | . 2 1 . Storage 1 | . 1 . . Processor 1 | . 1 . . Hackware . | . . . . Protection . | . . . . Artifact . | . . . . Weapon 5 | 2 . 3 . Energy Gun . | . . . . Energy Cannon . | . . . . Ballistic Gun 4 | 2 . 2 . Ballistic Cannon . | . . . . Launcher 1 | . . 1 . Special Weapon . | . . . . Impact Weapon . | . . . . Slashing Weapon . | . . . . Piercing Weapon . | . . . . Special Melee Weapon . | . . . . Unidentified Prototypes . | . . . . Parts Lost 11 | . . . 11 Power 2 | . . . 2 Propulsion 6 | . . . 6 Utility 1 | . . . 1 Weapon 2 | . . . 2 Highest Loss Streak 11 | . . . 11 Average Slot Usage (%) 95 | . 95 100 86 Engine 12 | . 14 11 11 Leg 29 | . 28 33 28 Device 11 | . 11 11 9 Storage 5 | . . 11 11 Processor 11 | . 11 11 11 Ballistic Gun 23 | . 28 21 15 Naked Turns . | . . . . Heaviest Build 43 | 7 41 43 43 Greatest Support 30 | 20 20 30 30 Greatest Overweight (x) 3 | 1 2 1 3 Average Overweight (x) . | . . 1 1 Largest Inventory Capacity 12 | 4 12 12 12 Average Capacity 7 | 4 4 12 12 Most Carried 12 | 4 5 11 12 Average Carried 5 | 2 4 6 11 Final Capacity 12 | 4 12 12 12 Final Carried 11 | 4 5 11 8 Class Distribution -------------------- 100% | Mutant Dominant Class ---------------- Mutant | -10/Materials Mutant | -9/Materials Mutant | -9/Mines Resources | -11 -10 -9 -9 ----------- Run | Scr Mat Mat Min Matter Collected 542 | 185 193 158 6 Remotely . | . . . . Salvage Created 553 | . 320 179 54 Parts 35 | . 23 9 3 Haulers Intercepted . | . . . . Recyclers Shooed 1 | . . 1 . Parts Field Recycled . | . . . . Retrieved Matter . | . . . . Parts Self-Destructed . | . . . . Prevented . | . . . . Kills | -11 -10 -9 -9 ------- Run | Scr Mat Mat Min Combat Hostiles Destroyed 12 | . 6 5 1 Guns 9 | . 6 2 1 AOE 3 | . . 3 . Classes Destroyed 5 | . 4 1 . Recycler 1 | . 1 . . Watcher 1 | . 1 . . Swarmer 2 | . 2 . . Grunt 9 | . 4 4 1 Sentry 1 | . . 1 . Best Kill Streak 3 | . 2 3 1 Combat Bots Only 3 | . 2 3 1 Max Kills in Single Turn 2 | . 1 2 1 Gunslinging . | . . . . Exploded 2 | . . 2 . Melee . | . . . . Uniques/NPCs Destroyed . | . . . . Combat | -11 -10 -9 -9 -------- Run | Scr Mat Mat Min Damage Taken 1319 | . 117 202 1000 Core 268 | . 17 79 172 Absorbed by Shields . | . . . . Core Remaining (%) 96 | 100 93 . . Volleys Fired 28 | . 13 14 1 Largest 2 | . 2 2 2 Hottest 50 | . 40 50 43 Shots Fired 56 | . 26 28 2 Gun 54 | . 26 26 2 Cannon . | . . . . Launcher 2 | . . 2 . Special . | . . . . Kinetic 54 | . 26 26 2 Thermal . | . . . . Explosive 2 | . . 2 . Electromagnetic . | . . . . Robot Hit Streak 14 | . 11 14 1 Robot Miss Streak 3 | . 2 2 3 Penetration Max . | . . . . Secondary Targets . | . . . . Shots Hit Robots 37 | . 17 19 1 Core Hits 22 | . 11 10 1 Critical Hits . | . . . . Critical Kills . | . . . . Critical Parts Destroyed . | . . . . Melee Attacks . | . . . . Impact . | . . . . Slashing . | . . . . Piercing . | . . . . Sneak Attacks . | . . . . Combat Hostiles . | . . . . Follow-up Attacks . | . . . . Damage Inflicted 624 | . 223 384 17 Guns 472 | . 223 232 17 Cannons . | . . . . Explosions 152 | . . 152 . Melee . | . . . . Ramming . | . . . . Kinetic 472 | . 223 232 17 Thermal . | . . . . Explosive 152 | . . 152 . Electromagnetic . | . . . . Impact . | . . . . Slashing . | . . . . Piercing . | . . . . Highest Corruption . | . . . . Average Corruption . | . . . . Corruption Purged . | . . . . Overload Shots . | . . . . Overflow Damage . | . . . . Projectiles . | . . . . Explosions . | . . . . Melee . | . . . . Knockbacks . | . . . . Impact . | . . . . Kinetic . | . . . . Secondary . | . . . . Self-Inflicted Damage . | . . . . Shots . | . . . . Rammed . | . . . . Targets Rammed . | . . . . Kicked . | . . . . Crushed . | . . . . Highest Temperature 1 | . . . 1 Average Temperature 1 | . . . 1 Received Heat Transfer 162 | . 30 84 48 Siege Activations . | . . . . Robots Corrupted . | . . . . Combat Hostiles . | . . . . Parts Fried . | . . . . Impact Corruptions . | . . . . Robots Melted . | . . . . Combat Hostiles . | . . . . Parts Melted . | . . . . Heat Transferred . | . . . . Parts Sabotaged . | . . . . Parts Stolen . | . . . . Parts Stripped . | . . . . Power Chain Reactions . | . . . . Missiles Intercepted . | . . . . Alert | -11 -10 -9 -9 ------- Run | Scr Mat Mat Min Peak Influence 234 | . 176 234 121 Average Influence 119 | . 88 198 102 Maximum Alert Level 1 | . . 1 . Low Security (%) 75 | 100 100 26 100 Level 1 24 | . . 73 . Level 2 . | . . . . Level 3 . | . . . . Level 4 . | . . . . Level 5 . | . . . . High Security . | . . . . Max Security . | . . . . Squads Dispatched 4 | . 1 3 . Investigation 3 | . 1 2 . Extermination . | . . . . Reinforcement 1 | . . 1 . Assault . | . . . . Garrison . | . . . . Intercept . | . . . . Construction Impeded . | . . . . Haulers Reinforced . | . . . . Stealth | -11 -10 -9 -9 --------- Run | Scr Mat Mat Min Distress Signals 2 | . 1 1 . Communications Jammed . | . . . . Distress Signals . | . . . . Times Spotted 26 | . 9 12 5 Peak Tracking Total 3 | . 3 3 3 Tactical Retreats 2 | . 1 1 . Traps | -11 -10 -9 -9 ------- Run | Scr Mat Mat Min Traps Triggered 2 | . 1 1 . Indirectly . | . . . . Trap Hack Attempts . | . . . . Triggered . | . . . . Disarmed . | . . . . Reprogrammed . | . . . . Reused . | . . . . Traps Extracted . | . . . . Installed . | . . . . Triggered . | . . . . Machines | -11 -10 -9 -9 ---------- Run | Scr Mat Mat Min Machines Disabled 2 | . . 2 . Max in Single Turn 2 | . . 2 . Machines Sabotaged . | . . . . Garrisons Compromised . | . . . . Overloaded Fab Kills . | . . . . Fab Network Shutdowns . | . . . . Hacking | -11 -10 -9 -9 --------- Run | Scr Mat Mat Min Machines Accessed 1 | . 1 . . Terminals 1 | . 1 . . Fabricators . | . . . . Repair Stations . | . . . . Recycling Units . | . . . . Scanalyzers . | . . . . Garrison Access . | . . . . Total Hacks 5 | . 5 . . Successful 3 | . 3 . . Failed 2 | . 2 . . Catastrophic . | . . . . Database Lockouts . | . . . . Manual . | . . . . Terminals 5 | . 5 . . Fabricators . | . . . . Repair Stations . | . . . . Recycling Units . | . . . . Scanalyzers . | . . . . Garrison Access . | . . . . Terminal Hacks 3 | . 3 . . Record 3 | . 3 . . Fabricator Hacks . | . . . . Repair Station Hacks . | . . . . Recycling Unit Hacks . | . . . . Scanalyzer . | . . . . Garrison Access Hacks . | . . . . Unauthorized Hacks . | . . . . Terminals . | . . . . Fabricators . | . . . . Repair Stations . | . . . . Recycling Units . | . . . . Scanalyzers . | . . . . Garrison Access . | . . . . Data Cores Recovered . | . . . . Used . | . . . . Hacking Detections 1 | . 1 . . Full Trace Events . | . . . . Feedback Events . | . . . . Feedback Blocked . | . . . . Robot Schematics Acquired . | . . . . Robots Built . | . . . . Matter . | . . . . Time . | . . . . Total Robot Build Rating . | . . . . Part Schematics Acquired . | . . . . Parts Built . | . . . . Matter . | . . . . Time . | . . . . Total Part Build Rating . | . . . . Parts Repaired . | . . . . Time . | . . . . Parts Recycled . | . . . . Recycled Matter . | . . . . Retrieved Matter . | . . . . Retrieved Components . | . . . . Parts Scanalyzed . | . . . . Part Schematics Acquired . | . . . . Parts Damaged . | . . . . Bothacking | -11 -10 -9 -9 ------------ Run | Scr Mat Mat Min Used RIF Installer . | . . . . Robots Hacked . | . . . . Non-combat . | . . . . Combat . | . . . . Robot Hacks Applied . | . . . . Relay Couplers Released . | . . . . Robots Rewired . | . . . . Allies Hacked . | . . . . Hacks Repelled . | . . . . Allies | -11 -10 -9 -9 -------- Run | Scr Mat Mat Min Total Allies . | . . . . Largest Group . | . . . . Highest-Rated Group . | . . . . Highest-Rated Ally . | . . . . Total Orders . | . . . . Ally Attacks . | . . . . Total Damage . | . . . . Kills . | . . . . Allies Corrupted . | . . . . Allies Melted . | . . . . Intel | -11 -10 -9 -9 ------- Run | Scr Mat Mat Min Robot Analysis Total . | . . . . Derelict Logs Recovered . | . . . . Drone Launches . | . . . . Drone Recoveries . | . . . . Exploration | -11 -10 -9 -9 ------------- Run | Scr Mat Mat Min Turns Passed 839 | 74 367 285 113 Spaces Moved 456 | 57 189 143 67 Core 12 | 12 . . . Treads . | . . . . Legs 444 | 45 189 143 67 Wheels . | . . . . Hover . | . . . . Flight . | . . . . Fastest Speed 50 | 50 120 150 150 Average Speed 133 | 110 121 150 150 Slowest Speed 210 | 120 180 150 210 Overloaded Moves . | . . . . Propulsion Burnouts . | . . . . Robots Hopped . | . . . . Cave-ins Triggered . | . . . . Exploration Rate (%) 19 | 4 38 12 25 Regions Visited 3 Branch Regions 1 Pre-discovered Areas . | . . . . Known Exits Taken . | . . . . Unknown Exits Taken 3 | 1 1 1 . Scrap Searched . | . . . . Spaces Dug . | . . . . Terrain Destroyed 6 | . . 6 . Melee . | . . . . Projectile . | . . . . AOE 6 | . . 6 . Actions | -11 -10 -9 -9 --------- Run | Scr Mat Mat Min Total 628 | 65 302 184 77 Wait 96 | . 80 16 . Move 453 | 56 188 142 67 Hop . | . . . . Pick Up 18 | 4 6 7 1 Fast Attach 9 | 5 4 . . Attach 6 | . . 2 4 Detach . | . . . . Swap 7 | . 2 3 2 Drop 11 | . 9 . 2 Fire 28 | . 13 14 1 Melee . | . . . . Ram . | . . . . Kick . | . . . . Crush . | . . . . Escape Stasis . | . . . . Rewire . | . . . . Trap . | . . . . Miscellaneous . | . . . . Route ------- -11/Scrapyard -10/Materials (discovered 2 exits: [*Mat] / [*Min]) -9/Materials -9/Mines History --------- Turn | Location | Event 8 | -11/Scrapyard | Discovered new exit (range 16) 75 | -11/Scrapyard | Entered Materials 303 | -10/Materials | Discovered new exit (range 9) 310 | -10/Materials | Build established: Mutant 420 | -10/Materials | Discovered new exit (range 13) 442 | -10/Materials | Entered another Materials area 442 | -9/Materials | Evolved 2 slots: Propulsion x1, Utility x1 444 | -9/Materials | Discovered new exit (range 7) 613 | -9/Materials | Met 8R-AWN 727 | -9/Materials | Entered Mines 729 | -9/Mines | Followed 8R-AWN into the Mines 767 | -9/Mines | Assembled infested the area 772 | -9/Mines | Assisted by a Guerilla fighting off Assembled 830 | -9/Mines | Core integrity fell below 50% 840 | -9/Mines | Self-destructed Last Messages --------------- 00816_ U-05 Engineer lays Concrete. 00818_ The unstable cave ceiling collapses. 00819_ U-05 Engineer lays Concrete. 00819_ Aluminum Leg destroyed. 00819_ Hvy. Assault Rifle destroyed. 00820_ U-05 Engineer lays Concrete. 00824_ Aluminum Leg destroyed. 00824_ Ion Engine destroyed. 00824_ Aluminum Leg destroyed. 00824_ Structural Scanner destroyed. 00824_ R-06 Scavenger destroyed. 00825_ U-05 Engineer lays Concrete. 00825_ U-05 Engineer destroyed. 00830_ The unstable cave ceiling collapses. 00830_ R-06 Scavenger collects Wheel. 00833_ The unstable cave ceiling collapses. 00838_ Aluminum Leg destroyed. 00840_ The unstable cave ceiling collapses. 00840_ K-01 Serf collects debris. 00840_ Ion Engine destroyed. Map ----- +----------------------------------------------------+ | ?????????????????????????????????????????????????? | | ?????????????????????????????????????????????????? | | ?????????????????????????????????????????????????? | | ?????????????????????????????????????????????????? | | ?????????????????????????????????????????????????? | | ?????????????????????????????????????????????????? | | ?????????????????????????????????????????????????? | | ?????????????????????????????????????????????????? | | ?????????????????????????????????????????????????? | | ?????????????????????????????????????????????????? | | ?????????????????????????????????????????????????? | | ?????????????????????????????????????????????????? | | ?????????????????????????????????????????????????? | | ?????????????????????????????????????????????????? | | ?????????????????????????????????????????????????? | | ?????????????????????????????????????????????????? | | ?????????????????????????????????????????????????? | | ???????????????????????????????????## ???????????? | | ?????????????????????????????????? k??????????? | | ????????????????????????????????? ???????????? | | ??????????????????????????###??? ?????????????? | | ?????????????????????##### ### ???????????????? | | ?????????????????????# ?????????????????? | | ???????????????????# # k ???????????????????? | | ???????????????????# ##???????????????????? | | ???????????????????# # @ #???????????????????? | | ???????????????????# ##??????????????????? | | ???????????????????## #??????????????????? | | ????????????????????# ##??????????????????? | | ????????????????????# #??????????????????? | | ????????????????????# #??????????????????? | | ????????????????????# #??????????????????? | | ????????????????????## #??????????????????? | | ????????????????????# # #??????????????????? | | ????????????????????# dd #?????????? ???????? | | ????????????????????# #?????????" #??????? | | ????????????????????## ###??????? #???????? | | ?????????????????????# #?????? ##??????? | | ?????????????????????## #????? ##?????? | | ??????????????????????# ###?? ##????? | | ??????????????????????## ## ???? | | ???????????????????????# ???? | | ???????????????????????# ???? | | ???????????????????????# ### #??????? | | ???????????????????????### # ###???????????? | | ????????????????????????# #????????????? | | ????????????????????????## # #####???????? | | ?????????????????????????## ## ##??????? | | ?????????????????????????## ##?????? | | ?????????????????????????# ##????? | +----------------------------------------------------+ Best States ------------- Heat Dissipation 35 Energy Generation 10 Energy Capacity 250 Matter Stores 300 Matter Capacity 300 Sight Range 16 Terrain Scan Density 10 Evasion (%) 40 Targeting Accuracy 5 Item Schematics ----------------- None Robot Schematics ------------------ None Fabricated ------------ Nothing Alien Tech Used ----------------- None Achievements -------------- None Challenges ------------ None Game ------ Seed CompositeHelicalReactor Manual? 0 Play Time 00:15:24 Cumulative 5.8 hours Start 2020.02.10 @ 10:13:19 End 2020.02.10 @ 10:26:57 Sessions 1 Manual Loads 0 Difficulty Rogue Special Mode None Game No. 8 Rogue 8 Adventurer 0 Explorer 0 Win Type - Total 0 Types 0/0/0/0/0/0/0 Lore% 7 Gallery% 12 Achievement% 12 Wizard Run 0 Options --------- ASCII 0 Keyboard 0 Movement Mouse Keybinds 0 Fullscreen 1 Font 20/SmallcapsGlow Map View 66x50 Tactical HUD 1 Map Filters NONE Filters NONE Steam 1 RUN: 947ea52f-2fa2-44eb-bc01-abcad3676434